[Event "January 2 Early 2024"]
[Site "https://www.chess.com"]
[Date "2024.01.02"]
[Round "10"]
[White "Mayaud, Raphael"]
[Black "Palczert, Matyas"]
[Result "1/2-1/2"]
[Board "88"]
[TimeControl "180+1"]
[WhiteFideId "627151"]
[BlackFideId "784958"]
[WhiteElo "2423"]
[BlackElo "2600"]
[WhiteTeam "FRA"]
[BlackTeam "HUN"]
[WhiteClock "0:00:06"]
[BlackClock "0:00:04"]

1. d4 {[%clk 0:02:59]}  Nf6 {[%clk 0:02:58]} 2. Bg5 {[%clk 0:02:56]}  e6 {[%clk 0:02:58]} 3. e4 {[%clk 0:02:55]}  h6 {[%clk 0:02:58]} 4. Bxf6 {[%clk 0:02:52]}  Qxf6 {[%clk 0:02:59]} 5. c3 {[%clk 0:02:53]}  c5 {[%clk 0:02:58]} 6. d5 {[%clk 0:02:51]}  exd5 {[%clk 0:02:57]} 7. exd5 {[%clk 0:02:51]}  Bd6 {[%clk 0:02:56]} 8. Nf3 {[%clk 0:02:49]}  O-O {[%clk 0:02:56]} 9. Be2 {[%clk 0:02:50]}  b6 {[%clk 0:02:49]} 10. O-O {[%clk 0:02:34]}  Ba6 {[%clk 0:02:44]} 11. Nbd2 {[%clk 0:02:22]}  Re8 {[%clk 0:02:27]} 12. Re1 {[%clk 0:02:22]}  Bxe2 {[%clk 0:02:23]} 13. Rxe2 {[%clk 0:02:23]}  Na6 {[%clk 0:02:18]} 14. Ne4 {[%clk 0:01:50]}  Qf4 {[%clk 0:02:12]} 15. Nxd6 {[%clk 0:01:39]}  Qxd6 {[%clk 0:02:10]} 16. c4 {[%clk 0:01:39]}  Nc7 {[%clk 0:02:08]} 17. Qd2 {[%clk 0:01:36]}  Rxe2 {[%clk 0:02:07]} 18. Qxe2 {[%clk 0:01:35]}  Re8 {[%clk 0:02:08]} 19. Qd2 {[%clk 0:01:35]}  b5 {[%clk 0:02:05]} 20. b3 {[%clk 0:01:32]}  Qf6 {[%clk 0:01:31]} 21. Rd1 {[%clk 0:01:16]}  bxc4 {[%clk 0:01:30]} 22. bxc4 {[%clk 0:01:16]}  d6 {[%clk 0:01:22]} 23. h3 {[%clk 0:01:16]}  Rb8 {[%clk 0:01:21]} 24. Qa5 {[%clk 0:00:59]}  Qd8 {[%clk 0:01:04]} 25. Re1 {[%clk 0:00:51]}  Ne8 {[%clk 0:00:47]} 26. Qxd8 {[%clk 0:00:49]}  Rxd8 {[%clk 0:00:44]} 27. Rb1 {[%clk 0:00:45]}  Nf6 {[%clk 0:00:41]} 28. Rb7 {[%clk 0:00:45]}  Re8 {[%clk 0:00:39]} 29. Rxa7 {[%clk 0:00:42]}  Re2 {[%clk 0:00:37]} 30. Ra6 {[%clk 0:00:34]}  Ne4 {[%clk 0:00:36]} 31. Ra8+ {[%clk 0:00:27]}  Kh7 {[%clk 0:00:36]} 32. Ra7 {[%clk 0:00:17]}  Kg6 {[%clk 0:00:31]} 33. Re7 {[%clk 0:00:16]}  f5 {[%clk 0:00:23]} 34. g4 {[%clk 0:00:15]}  Kf6 {[%clk 0:00:21]} 35. Re6+ {[%clk 0:00:14]}  Kf7 {[%clk 0:00:19]} 36. gxf5 {[%clk 0:00:15]}  Rxf2 {[%clk 0:00:13]} 37. Rxe4 {[%clk 0:00:10]}  Rxf3 {[%clk 0:00:13]} 38. Re6 {[%clk 0:00:10]}  Rxh3 {[%clk 0:00:12]} 39. Rxd6 {[%clk 0:00:10]}  Rc3 {[%clk 0:00:12]} 40. Rc6 {[%clk 0:00:08]}  Rxc4 {[%clk 0:00:12]} 41. a4 {[%clk 0:00:06]}  Rxa4 {[%clk 0:00:10]} 42. Rxc5 {[%clk 0:00:06]}  Rf4 {[%clk 0:00:10]} 43. d6 {[%clk 0:00:05]}  Rd4 {[%clk 0:00:10]} 44. Rc7+ {[%clk 0:00:04]}  Kf6 {[%clk 0:00:09]} 45. d7 {[%clk 0:00:04]}  h5 {[%clk 0:00:09]} 46. Kf2 {[%clk 0:00:04]}  h4 {[%clk 0:00:08]} 47. Ke3 {[%clk 0:00:04]}  Rd1 {[%clk 0:00:07]} 48. Kf3 {[%clk 0:00:04]}  Rd3+ {[%clk 0:00:07]} 49. Kg4 {[%clk 0:00:04]}  Rd4+ {[%clk 0:00:06]} 50. Kh3 {[%clk 0:00:04]}  Kxf5 {[%clk 0:00:05]} 51. d8=Q {[%clk 0:00:04]}  Rxd8 {[%clk 0:00:04]} 52. Rxg7 {[%clk 0:00:04]}  Kf4 {[%clk 0:00:03]} 53. Rf7+ {[%clk 0:00:03]}  Kg5 {[%clk 0:00:03]} 54. Rg7+ {[%clk 0:00:04]}  Kh6 {[%clk 0:00:03]} 55. Rg4 {[%clk 0:00:04]}  Kh5 {[%clk 0:00:02]} 56. Rxh4+ {[%clk 0:00:04]}  Kg5 {[%clk 0:00:03]} 57. Rg4+ {[%clk 0:00:04]}  Kh5 {[%clk 0:00:03]} 58. Rh4+ {[%clk 0:00:04]}  Kg5 {[%clk 0:00:04]} 59. Rg4+ {[%clk 0:00:05]}  Kh5 {[%clk 0:00:04]} 60. Rh4+ {[%clk 0:00:06]} 1/2-1/2

[Event "January 2 Early 2024"]
[Site "https://www.chess.com"]
[Date "2024.01.02"]
[Round "10"]
[White "Munoz Galvez, Jhon Edison"]
[Black "Gomez Falagan, Daniel"]
[Result "1-0"]
[Board "90"]
[TimeControl "180+1"]
[WhiteFideId "4403797"]
[BlackFideId "54509947"]
[WhiteElo "2560"]
[BlackElo "2387"]
[WhiteTeam "COL"]
[BlackTeam "ESP"]
[WhiteClock "0:00:46"]
[BlackClock "0:00:00"]

1. d4 {[%clk 0:03:00]}  Nf6 {[%clk 0:02:58]} 2. c4 {[%clk 0:03:00]}  c5 {[%clk 0:02:58]} 3. d5 {[%clk 0:03:00]}  b5 {[%clk 0:02:59]} 4. cxb5 {[%clk 0:03:01]}  a6 {[%clk 0:02:59]} 5. b6 {[%clk 0:03:01]}  d6 {[%clk 0:02:58]} 6. Nc3 {[%clk 0:03:01]}  Nbd7 {[%clk 0:02:59]} 7. Nf3 {[%clk 0:03:02]}  g6 {[%clk 0:02:58]} 8. g3 {[%clk 0:03:02]}  Bg7 {[%clk 0:02:59]} 9. Bg2 {[%clk 0:03:03]}  O-O {[%clk 0:02:59]} 10. O-O {[%clk 0:03:03]}  Qxb6 {[%clk 0:02:57]} 11. h3 {[%clk 0:03:03]}  a5 {[%clk 0:02:53]} 12. Qc2 {[%clk 0:03:02]}  Ba6 {[%clk 0:02:51]} 13. Rd1 {[%clk 0:02:59]}  Rfb8 {[%clk 0:02:47]} 14. Rb1 {[%clk 0:02:58]}  Ne8 {[%clk 0:02:47]} 15. Bd2 {[%clk 0:02:56]}  Nc7 {[%clk 0:02:47]} 16. Na4 {[%clk 0:02:49]}  Qb5 {[%clk 0:02:44]} 17. e4 {[%clk 0:02:46]}  Qd3 {[%clk 0:02:38]} 18. Qc1 {[%clk 0:02:23]}  Qxe4 {[%clk 0:02:37]} 19. b3 {[%clk 0:02:20]}  Qxd5 {[%clk 0:02:11]} 20. Bxa5 {[%clk 0:02:16]}  Qb7 {[%clk 0:01:47]} 21. Ne5 {[%clk 0:02:08]}  Qc8 {[%clk 0:01:28]} 22. Nc6 {[%clk 0:02:06]}  Kf8 {[%clk 0:01:14]} 23. Bc3 {[%clk 0:01:47]}  Nf6 {[%clk 0:01:02]} 24. Qe3 {[%clk 0:01:31]}  Ncd5 {[%clk 0:00:38]} 25. Rxd5 {[%clk 0:01:22]}  Nxd5 {[%clk 0:00:39]} 26. Bxd5 {[%clk 0:01:19]}  e6 {[%clk 0:00:27]} 27. Bg2 {[%clk 0:01:07]}  Rb7 {[%clk 0:00:11]} 28. Bxg7+ {[%clk 0:01:03]}  Kxg7 {[%clk 0:00:12]} 29. Qc3+ {[%clk 0:01:01]}  Kg8 {[%clk 0:00:11]} 30. Nb6 {[%clk 0:00:55]}  Qf8 {[%clk 0:00:02]} 31. Nxa8 {[%clk 0:00:53]}  Qxa8 {[%clk 0:00:03]} 32. Rd1 {[%clk 0:00:49]}  d5 {[%clk 0:00:03]} 33. Qxc5 {[%clk 0:00:47]}  Rc7 {[%clk 0:00:00]} 34. Ne7+ {[%clk 0:00:46]} 1-0

[Event "January 2 Early 2024"]
[Site "https://www.chess.com"]
[Date "2024.01.02"]
[Round "10"]
[White "knightmareprodigy"]
[Black "Ljukin, Sergei"]
[Result "0-1"]
[Board "94"]
[TimeControl "180+1"]
[BlackFideId "14102200"]
[WhiteElo "2327"]
[BlackElo "2524"]
[BlackTeam "UKR"]
[WhiteClock "0:00:49"]
[BlackClock "0:02:13"]

1. e4 {[%clk 0:03:00]}  e6 {[%clk 0:03:00]} 2. d4 {[%clk 0:02:58]}  d5 {[%clk 0:03:00]} 3. e5 {[%clk 0:02:58]}  c5 {[%clk 0:03:01]} 4. c3 {[%clk 0:02:58]}  Nc6 {[%clk 0:03:01]} 5. Nf3 {[%clk 0:02:58]}  Qb6 {[%clk 0:03:01]} 6. Bd3 {[%clk 0:02:58]}  cxd4 {[%clk 0:03:01]} 7. O-O {[%clk 0:02:58]}  Bd7 {[%clk 0:03:01]} 8. h4 {[%clk 0:02:58]}  f6 {[%clk 0:03:01]} 9. Re1 {[%clk 0:02:57]}  fxe5 {[%clk 0:03:01]} 10. Nxe5 {[%clk 0:02:55]}  Nxe5 {[%clk 0:03:01]} 11. Rxe5 {[%clk 0:02:55]}  Nf6 {[%clk 0:03:01]} 12. cxd4 {[%clk 0:02:52]}  Bd6 {[%clk 0:03:01]} 13. Re1 {[%clk 0:02:49]}  O-O-O {[%clk 0:02:53]} 14. Be3 {[%clk 0:02:35]}  h5 {[%clk 0:02:40]} 15. Nd2 {[%clk 0:02:34]}  Ng4 {[%clk 0:02:39]} 16. Nb3 {[%clk 0:02:30]}  Rhf8 {[%clk 0:02:32]} 17. a4 {[%clk 0:02:19]}  Bh2+ {[%clk 0:02:28]} 18. Kh1 {[%clk 0:02:04]}  Rxf2 {[%clk 0:02:22]} 19. a5 {[%clk 0:01:49]}  Qd6 {[%clk 0:02:22]} 20. Qc1+ {[%clk 0:01:34]}  Kb8 {[%clk 0:02:17]} 21. Nc5 {[%clk 0:00:49]}  Bg1 {[%clk 0:02:13]} 0-1

[Event "January 2 Early 2024"]
[Site "https://www.chess.com"]
[Date "2024.01.02"]
[Round "10"]
[White "Fernandez Hernandez, Gerardo"]
[Black "Jaiveer Mahendru"]
[Result "1-0"]
[Board "95"]
[TimeControl "180+1"]
[WhiteFideId "2207400"]
[BlackFideId "25611151"]
[WhiteElo "2292"]
[BlackElo "2520"]
[WhiteTeam "ESP"]
[BlackTeam "IND"]
[WhiteClock "0:00:09"]
[BlackClock "0:00:46"]

1. e4 {[%clk 0:03:00]}  e6 {[%clk 0:03:00]} 2. d3 {[%clk 0:03:00]}  d5 {[%clk 0:03:01]} 3. Nd2 {[%clk 0:03:01]}  Nc6 {[%clk 0:03:00]} 4. Ngf3 {[%clk 0:02:59]}  g6 {[%clk 0:03:01]} 5. g3 {[%clk 0:02:57]}  Bg7 {[%clk 0:03:01]} 6. Bg2 {[%clk 0:02:57]}  Nge7 {[%clk 0:03:01]} 7. O-O {[%clk 0:02:57]}  O-O {[%clk 0:03:02]} 8. Re1 {[%clk 0:02:57]}  f5 {[%clk 0:03:02]} 9. c3 {[%clk 0:02:40]}  b6 {[%clk 0:02:58]} 10. Qe2 {[%clk 0:02:31]}  Ba6 {[%clk 0:02:55]} 11. exf5 {[%clk 0:02:27]}  exf5 {[%clk 0:02:51]} 12. Ng5 {[%clk 0:02:08]}  Bc8 {[%clk 0:02:43]} 13. Ne6 {[%clk 0:02:04]}  Bxe6 {[%clk 0:02:38]} 14. Qxe6+ {[%clk 0:02:05]}  Kh8 {[%clk 0:02:25]} 15. Nf3 {[%clk 0:02:04]}  Rf6 {[%clk 0:02:24]} 16. Qe2 {[%clk 0:01:46]}  Qd7 {[%clk 0:02:21]} 17. Bg5 {[%clk 0:01:26]}  Rff8 {[%clk 0:02:10]} 18. d4 {[%clk 0:01:00]}  Rae8 {[%clk 0:01:56]} 19. Ne5 {[%clk 0:00:57]}  Nxe5 {[%clk 0:01:52]} 20. dxe5 {[%clk 0:00:57]}  Nc6 {[%clk 0:01:52]} 21. e6 {[%clk 0:00:48]}  Qd6 {[%clk 0:01:51]} 22. Rad1 {[%clk 0:00:37]}  Ne5 {[%clk 0:01:47]} 23. Rxd5 {[%clk 0:00:33]}  Qxe6 {[%clk 0:01:44]} 24. f4 {[%clk 0:00:24]}  Qf7 {[%clk 0:01:19]} 25. fxe5 {[%clk 0:00:21]}  c6 {[%clk 0:01:20]} 26. Rdd1 {[%clk 0:00:14]}  Rxe5 {[%clk 0:01:19]} 27. Qd2 {[%clk 0:00:13]}  Rxe1+ {[%clk 0:01:11]} 28. Rxe1 {[%clk 0:00:13]}  Qxa2 {[%clk 0:01:12]} 29. Bxc6 {[%clk 0:00:12]}  Qc4 {[%clk 0:01:09]} 30. Bd5 {[%clk 0:00:12]}  Qc5+ {[%clk 0:01:10]} 31. Kh1 {[%clk 0:00:11]}  a5 {[%clk 0:00:46]} 32. Be7 {[%clk 0:00:11]}  Qc7 {[%clk 0:00:38]} 33. Bxf8 {[%clk 0:00:11]}  Bxf8 {[%clk 0:00:39]} 34. Qd4+ {[%clk 0:00:08]}  Qg7 {[%clk 0:00:38]} 35. Qxg7+ {[%clk 0:00:07]}  Kxg7 {[%clk 0:00:39]} 36. Re6 {[%clk 0:00:05]}  Bc5 {[%clk 0:00:38]} 37. Rc6 {[%clk 0:00:05]}  a4 {[%clk 0:00:39]} 38. Rxc5 {[%clk 0:00:05]}  a3 {[%clk 0:00:40]} 39. Rc7+ {[%clk 0:00:04]}  Kh6 {[%clk 0:00:40]} 40. bxa3 {[%clk 0:00:05]}  g5 {[%clk 0:00:41]} 41. Rc6+ {[%clk 0:00:05]}  Kh5 {[%clk 0:00:41]} 42. Rxb6 {[%clk 0:00:06]}  g4 {[%clk 0:00:42]} 43. a4 {[%clk 0:00:07]}  Kg5 {[%clk 0:00:43]} 44. a5 {[%clk 0:00:07]}  h5 {[%clk 0:00:43]} 45. a6 {[%clk 0:00:08]}  h4 {[%clk 0:00:44]} 46. a7 {[%clk 0:00:09]}  h3 {[%clk 0:00:45]} 47. a8=Q {[%clk 0:00:09]}  Kh5 {[%clk 0:00:46]} 48. Qh8+ {[%clk 0:00:08]}  Kg5 {[%clk 0:00:47]} 49. Qg7+ {[%clk 0:00:08]}  Kh5 {[%clk 0:00:46]} 50. Rh6# {[%clk 0:00:09]} 1-0

[Event "January 2 Early 2024"]
[Site "https://www.chess.com"]
[Date "2024.01.02"]
[Round "10"]
[White "Delgado Kuffo, Andres"]
[Black "Shapiro, Viktor"]
[Result "0-1"]
[Board "96"]
[TimeControl "180+1"]
[WhiteFideId "3600475"]
[BlackFideId "4175700"]
[WhiteElo "2266"]
[BlackElo "2519"]
[WhiteTeam "ECU"]
[BlackTeam "RUS"]
[WhiteClock "0:00:00"]
[BlackClock "0:00:44"]

1. e3 {[%clk 0:03:00]}  Nf6 {[%clk 0:03:00]} 2. b3 {[%clk 0:02:31]}  e6 {[%clk 0:02:57]} 3. Bb2 {[%clk 0:02:27]}  d5 {[%clk 0:02:56]} 4. f4 {[%clk 0:02:18]}  Bd6 {[%clk 0:02:48]} 5. Nf3 {[%clk 0:02:18]}  O-O {[%clk 0:02:48]} 6. Bd3 {[%clk 0:02:11]}  b6 {[%clk 0:02:40]} 7. O-O {[%clk 0:02:06]}  Bb7 {[%clk 0:02:40]} 8. Qe1 {[%clk 0:02:01]}  Ne4 {[%clk 0:02:34]} 9. Nc3 {[%clk 0:01:53]}  f5 {[%clk 0:02:32]} 10. Ne2 {[%clk 0:01:48]}  Nd7 {[%clk 0:02:31]} 11. Ned4 {[%clk 0:01:36]}  Qe7 {[%clk 0:02:23]} 12. Bxe4 {[%clk 0:01:34]}  fxe4 {[%clk 0:02:20]} 13. Ng5 {[%clk 0:01:33]}  Rf6 {[%clk 0:02:02]} 14. Qh4 {[%clk 0:01:14]}  Rh6 {[%clk 0:02:00]} 15. Qg4 {[%clk 0:01:14]}  Rg6 {[%clk 0:01:38]} 16. Qh3 {[%clk 0:00:55]}  Nf8 {[%clk 0:01:35]} 17. Ndxe6 {[%clk 0:00:43]}  Rxe6 {[%clk 0:01:35]} 18. Nxe6 {[%clk 0:00:40]}  Qxe6 {[%clk 0:01:35]} 19. f5 {[%clk 0:00:40]}  Qf7 {[%clk 0:01:30]} 20. f6 {[%clk 0:00:20]}  g6 {[%clk 0:01:30]} 21. Rf2 {[%clk 0:00:18]}  Ne6 {[%clk 0:01:20]} 22. Raf1 {[%clk 0:00:16]}  Rf8 {[%clk 0:01:18]} 23. g4 {[%clk 0:00:13]}  Ng5 {[%clk 0:01:13]} 24. Qh6 {[%clk 0:00:13]}  Nf3+ {[%clk 0:01:13]} 25. Rxf3 {[%clk 0:00:13]}  exf3 {[%clk 0:01:13]} 26. g5 {[%clk 0:00:10]}  d4 {[%clk 0:01:10]} 27. Bxd4 {[%clk 0:00:09]}  Bc5 {[%clk 0:01:03]} 28. c3 {[%clk 0:00:07]}  Bxd4 {[%clk 0:01:02]} 29. cxd4 {[%clk 0:00:07]}  c5 {[%clk 0:00:54]} 30. dxc5 {[%clk 0:00:07]}  bxc5 {[%clk 0:00:54]} 31. Rc1 {[%clk 0:00:08]}  Rc8 {[%clk 0:00:54]} 32. Rc4 {[%clk 0:00:08]}  Bd5 {[%clk 0:00:51]} 33. Ra4 {[%clk 0:00:04]}  c4 {[%clk 0:00:48]} 34. bxc4 {[%clk 0:00:04]}  Rxc4 {[%clk 0:00:48]} 35. Ra6 {[%clk 0:00:00]}  Rc6 {[%clk 0:00:44]} 0-1

[Event "January 2 Early 2024"]
[Site "https://www.chess.com"]
[Date "2024.01.02"]
[Round "10"]
[White "Andrews, Todd"]
[Black "Jovic, Stanoje"]
[Result "1-0"]
[Board "99"]
[TimeControl "180+1"]
[WhiteFideId "2012456"]
[BlackFideId "905020"]
[WhiteElo "2597"]
[BlackElo "2426"]
[WhiteTeam "USA"]
[BlackTeam "SRB"]
[WhiteClock "0:00:39"]
[BlackClock "0:00:00"]

1. d4 {[%clk 0:03:00]}  Nf6 {[%clk 0:02:59]} 2. c4 {[%clk 0:03:00]}  e6 {[%clk 0:02:59]} 3. Nc3 {[%clk 0:03:00]}  Bb4 {[%clk 0:02:59]} 4. Qc2 {[%clk 0:03:00]}  d5 {[%clk 0:02:58]} 5. cxd5 {[%clk 0:02:59]}  exd5 {[%clk 0:02:57]} 6. Bg5 {[%clk 0:02:59]}  O-O {[%clk 0:02:57]} 7. e3 {[%clk 0:02:59]}  c6 {[%clk 0:02:54]} 8. Bd3 {[%clk 0:02:59]}  h6 {[%clk 0:02:54]} 9. Bh4 {[%clk 0:02:59]}  Nbd7 {[%clk 0:02:50]} 10. Ne2 {[%clk 0:02:59]}  Bd6 {[%clk 0:02:47]} 11. Bg3 {[%clk 0:02:58]}  Qe7 {[%clk 0:02:38]} 12. O-O {[%clk 0:02:56]}  Re8 {[%clk 0:02:27]} 13. Rab1 {[%clk 0:02:56]}  Nf8 {[%clk 0:02:22]} 14. Bxd6 {[%clk 0:02:47]}  Qxd6 {[%clk 0:02:22]} 15. b4 {[%clk 0:02:48]}  b5 {[%clk 0:02:11]} 16. a4 {[%clk 0:02:43]}  a6 {[%clk 0:02:08]} 17. Rfc1 {[%clk 0:02:42]}  Bg4 {[%clk 0:02:05]} 18. Ng3 {[%clk 0:02:40]}  Bd7 {[%clk 0:01:57]} 19. Nce2 {[%clk 0:02:38]}  g5 {[%clk 0:01:54]} 20. Bf5 {[%clk 0:02:36]}  Rec8 {[%clk 0:01:48]} 21. Bxd7 {[%clk 0:02:36]}  Qxd7 {[%clk 0:01:38]} 22. Qf5 {[%clk 0:02:28]}  Kg7 {[%clk 0:01:29]} 23. Rc3 {[%clk 0:02:24]}  bxa4 {[%clk 0:01:21]} 24. Ra1 {[%clk 0:02:10]}  a5 {[%clk 0:01:20]} 25. Rxa4 {[%clk 0:01:56]}  axb4 {[%clk 0:01:19]} 26. Qxd7 {[%clk 0:01:49]}  N8xd7 {[%clk 0:01:15]} 27. Rxa8 {[%clk 0:01:49]}  Rxa8 {[%clk 0:01:13]} 28. Rxc6 {[%clk 0:01:49]}  b3 {[%clk 0:01:09]} 29. Rc1 {[%clk 0:01:47]}  Ne4 {[%clk 0:01:04]} 30. Nxe4 {[%clk 0:01:46]}  dxe4 {[%clk 0:01:04]} 31. Rb1 {[%clk 0:01:44]}  b2 {[%clk 0:01:00]} 32. f3 {[%clk 0:01:36]}  Ra1 {[%clk 0:00:59]} 33. Nc3 {[%clk 0:01:36]}  exf3 {[%clk 0:00:57]} 34. gxf3 {[%clk 0:01:36]}  Nb6 {[%clk 0:00:56]} 35. Kf2 {[%clk 0:01:35]}  Nc4 {[%clk 0:00:55]} 36. Ke2 {[%clk 0:01:28]}  f5 {[%clk 0:00:51]} 37. Kd3 {[%clk 0:01:26]}  Rxb1 {[%clk 0:00:49]} 38. Nxb1 {[%clk 0:01:26]}  Nb6 {[%clk 0:00:42]} 39. Kc2 {[%clk 0:01:25]}  g4 {[%clk 0:00:42]} 40. fxg4 {[%clk 0:01:24]}  fxg4 {[%clk 0:00:42]} 41. Nd2 {[%clk 0:01:20]}  Na4 {[%clk 0:00:37]} 42. Kb3 {[%clk 0:01:20]}  h5 {[%clk 0:00:35]} 43. Kxa4 {[%clk 0:01:16]}  h4 {[%clk 0:00:35]} 44. Kb3 {[%clk 0:01:15]}  g3 {[%clk 0:00:32]} 45. hxg3 {[%clk 0:01:12]}  h3 {[%clk 0:00:30]} 46. Kxb2 {[%clk 0:01:12]}  h2 {[%clk 0:00:29]} 47. Kc3 {[%clk 0:01:11]}  h1=Q {[%clk 0:00:29]} 48. Kd3 {[%clk 0:01:12]}  Qd1 {[%clk 0:00:28]} 49. e4 {[%clk 0:01:11]}  Qg4 {[%clk 0:00:24]} 50. d5 {[%clk 0:01:09]}  Qxg3+ {[%clk 0:00:22]} 51. Kd4 {[%clk 0:01:10]}  Qg1+ {[%clk 0:00:20]} 52. Kd3 {[%clk 0:01:08]}  Kf6 {[%clk 0:00:18]} 53. Nc4 {[%clk 0:01:08]}  Qd1+ {[%clk 0:00:15]} 54. Kc3 {[%clk 0:01:06]}  Ke7 {[%clk 0:00:13]} 55. Ne3 {[%clk 0:00:58]}  Qe2 {[%clk 0:00:08]} 56. Nf5+ {[%clk 0:00:52]}  Kf6 {[%clk 0:00:07]} 57. Kd4 {[%clk 0:00:52]}  Qb2+ {[%clk 0:00:07]} 58. Kc5 {[%clk 0:00:49]}  Ke5 {[%clk 0:00:05]} 59. d6 {[%clk 0:00:44]}  Qc2+ {[%clk 0:00:04]} 60. Kb6 {[%clk 0:00:43]}  Qb3+ {[%clk 0:00:02]} 61. Kc7 {[%clk 0:00:42]}  Qc4+ {[%clk 0:00:00]} 62. Kd8 {[%clk 0:00:39]} 1-0

[Event "January 2 Early 2024"]
[Site "https://www.chess.com"]
[Date "2024.01.02"]
[Round "10"]
[White "Nemec, Jachym"]
[Black "Manukian, Artak"]
[Result "1-0"]
[Board "100"]
[TimeControl "180+1"]
[WhiteFideId "23716525"]
[BlackFideId "13301373"]
[WhiteElo "2423"]
[BlackElo "2588"]
[WhiteTeam "CZE"]
[BlackTeam "ARM"]
[WhiteClock "0:00:38"]
[BlackClock "0:00:42"]

1. Nf3 {[%clk 0:02:34]}  g6 {[%clk 0:02:59]} 2. g3 {[%clk 0:02:35]}  Bg7 {[%clk 0:02:59]} 3. Bg2 {[%clk 0:02:34]}  e5 {[%clk 0:03:00]} 4. d3 {[%clk 0:02:34]}  d5 {[%clk 0:02:59]} 5. O-O {[%clk 0:02:34]}  Nc6 {[%clk 0:02:58]} 6. e4 {[%clk 0:02:34]}  dxe4 {[%clk 0:02:57]} 7. dxe4 {[%clk 0:02:35]}  Qxd1 {[%clk 0:02:57]} 8. Rxd1 {[%clk 0:02:36]}  Bg4 {[%clk 0:02:54]} 9. c3 {[%clk 0:02:36]}  Nge7 {[%clk 0:02:52]} 10. h3 {[%clk 0:02:35]}  Bxf3 {[%clk 0:02:52]} 11. Bxf3 {[%clk 0:02:36]}  Rd8 {[%clk 0:02:51]} 12. Rxd8+ {[%clk 0:02:35]}  Kxd8 {[%clk 0:02:51]} 13. a4 {[%clk 0:02:36]}  f5 {[%clk 0:02:48]} 14. Na3 {[%clk 0:02:34]}  Kc8 {[%clk 0:02:43]} 15. Nc4 {[%clk 0:02:32]}  Rd8 {[%clk 0:02:42]} 16. Be3 {[%clk 0:02:32]}  fxe4 {[%clk 0:02:38]} 17. Bxe4 {[%clk 0:02:33]}  Nf5 {[%clk 0:02:38]} 18. b4 {[%clk 0:02:24]}  Nxe3 {[%clk 0:02:33]} 19. Nxe3 {[%clk 0:02:24]}  Ne7 {[%clk 0:02:32]} 20. a5 {[%clk 0:02:21]}  a6 {[%clk 0:02:32]} 21. Kf1 {[%clk 0:02:12]}  c6 {[%clk 0:02:29]} 22. Ke2 {[%clk 0:01:48]}  Kc7 {[%clk 0:02:18]} 23. Rd1 {[%clk 0:01:41]}  Rxd1 {[%clk 0:02:18]} 24. Kxd1 {[%clk 0:01:42]}  Kd6 {[%clk 0:02:11]} 25. Nc4+ {[%clk 0:01:42]}  Ke6 {[%clk 0:02:11]} 26. Kc2 {[%clk 0:01:42]}  Nd5 {[%clk 0:02:10]} 27. Kd3 {[%clk 0:01:42]}  Bh6 {[%clk 0:02:03]} 28. Nb2 {[%clk 0:01:40]}  Nf6 {[%clk 0:01:54]} 29. Na4 {[%clk 0:01:38]}  Bf8 {[%clk 0:01:54]} 30. g4 {[%clk 0:01:27]}  Bd6 {[%clk 0:01:50]} 31. f3 {[%clk 0:01:25]}  Ng8 {[%clk 0:01:37]} 32. Kc4 {[%clk 0:01:21]}  Ne7 {[%clk 0:01:32]} 33. Nc5+ {[%clk 0:01:17]}  Bxc5 {[%clk 0:01:31]} 34. Kxc5 {[%clk 0:01:18]}  Kd7 {[%clk 0:01:22]} 35. c4 {[%clk 0:01:17]}  Kc7 {[%clk 0:01:19]} 36. h4 {[%clk 0:01:13]}  h6 {[%clk 0:01:18]} 37. h5 {[%clk 0:01:12]}  g5 {[%clk 0:01:18]} 38. b5 {[%clk 0:00:57]}  cxb5 {[%clk 0:01:16]} 39. cxb5 {[%clk 0:00:58]}  axb5 {[%clk 0:01:17]} 40. Kxb5 {[%clk 0:00:59]}  Nc8 {[%clk 0:01:09]} 41. Kc5 {[%clk 0:00:58]}  Ne7 {[%clk 0:01:08]} 42. Bd5 {[%clk 0:00:45]}  Nc8 {[%clk 0:01:00]} 43. Bb3 {[%clk 0:00:42]}  Ne7 {[%clk 0:00:58]} 44. Ba4 {[%clk 0:00:42]}  Nc8 {[%clk 0:00:53]} 45. Kd5 {[%clk 0:00:41]}  Nd6 {[%clk 0:00:53]} 46. Kxe5 {[%clk 0:00:39]}  Nc4+ {[%clk 0:00:53]} 47. Kf6 {[%clk 0:00:40]}  Nxa5 {[%clk 0:00:54]} 48. Kg7 {[%clk 0:00:40]}  Nc4 {[%clk 0:00:50]} 49. Kxh6 {[%clk 0:00:38]}  Ne5 {[%clk 0:00:42]} 50. Kg7 {[%clk 0:00:38]} 1-0

[Event "January 2 Early 2024"]
[Site "https://www.chess.com"]
[Date "2024.01.02"]
[Round "10"]
[White "Zhuk, Valeriy"]
[Black "Rogov, Matfey"]
[Result "0-1"]
[Board "103"]
[TimeControl "180+1"]
[WhiteFideId "24151254"]
[BlackFideId "44191308"]
[WhiteElo "2399"]
[BlackElo "2527"]
[WhiteTeam "RUS"]
[BlackTeam "RUS"]
[WhiteClock "0:01:17"]
[BlackClock "0:02:03"]

1. e4 {[%clk 0:02:59]}  e5 {[%clk 0:02:59]} 2. Nf3 {[%clk 0:02:58]}  Nf6 {[%clk 0:02:59]} 3. Nc3 {[%clk 0:02:54]}  Nc6 {[%clk 0:02:59]} 4. Bb5 {[%clk 0:02:53]}  Nd4 {[%clk 0:02:59]} 5. Ba4 {[%clk 0:02:36]}  c6 {[%clk 0:02:56]} 6. d3 {[%clk 0:02:34]}  d5 {[%clk 0:02:48]} 7. exd5 {[%clk 0:02:27]}  b5 {[%clk 0:02:48]} 8. Bb3 {[%clk 0:02:25]}  Bg4 {[%clk 0:02:48]} 9. dxc6 {[%clk 0:02:09]}  Qc7 {[%clk 0:02:46]} 10. Be3 {[%clk 0:01:55]}  Bxf3 {[%clk 0:02:43]} 11. gxf3 {[%clk 0:01:54]}  Qxc6 {[%clk 0:02:42]} 12. Bxd4 {[%clk 0:01:53]}  exd4 {[%clk 0:02:42]} 13. Qe2+ {[%clk 0:01:53]}  Kd7 {[%clk 0:02:26]} 14. Ne4 {[%clk 0:01:53]}  Bb4+ {[%clk 0:02:22]} 15. Kd1 {[%clk 0:01:46]}  Nd5 {[%clk 0:02:17]} 16. a4 {[%clk 0:01:45]}  a6 {[%clk 0:02:12]} 17. Bxd5 {[%clk 0:01:27]}  Qxd5 {[%clk 0:02:10]} 18. f4 {[%clk 0:01:27]}  f5 {[%clk 0:02:05]} 19. Ng3 {[%clk 0:01:21]}  Rhe8 {[%clk 0:02:03]} 20. Qh5 {[%clk 0:01:19]}  Qxh1+ {[%clk 0:02:02]} 21. Nxh1 {[%clk 0:01:17]}  Re1# {[%clk 0:02:03]} 0-1